bitfinex/quotes_SOLUSD_20251218
["timestamp","ask_amount","ask_price","bid_price","bid_amount"]
[1766081924885,8.86,123.53,123.48,7.01168106]
[1766081925124,7.69168106,123.52,123.47,0.71]
[1766081925296,7.69168106,123.54,123.48,7.01168106]
[1766081925490,7.69168106,123.54,123.49,0.71]
[1766081925491,15.87168106,123.54,123.49,0.71]
[1766081925690,8.86,123.54,123.49,0.71]
[1766081926012,15.87168106,123.54,123.49,0.71]
[1766081926212,16.55168106,123.54,123.49,0.71]
[1766081926688,9.54,123.54,123.49,0.71]
[1766081926890,16.55168106,123.54,123.49,0.71]
[1766081927087,7.69168106,123.53,123.49,0.71]
[1766081927293,7.69168106,123.53,123.48,0.71]
[1766081927499,0.68,123.53,123.48,8.80843222]
[1766081927698,7.69168106,123.53,123.48,8.80843222]
[1766081927898,15.87168106,123.54,123.48,15.11011328]
[1766081928106,16.55168106,123.54,123.49,0.71]
[1766081928505,9.54,123.54,123.49,0.71]
[1766081928909,8.86,123.54,123.5,0.71]
[1766081929101,15.87168106,123.54,123.5,0.71]
[1766081929303,8.86,123.54,123.5,0.71]
[1766081931012,15.87168106,123.54,123.5,0.71]
[1766081931316,15.87168106,123.54,123.49,0.71]
[1766081931317,16.55168106,123.54,123.49,0.71]
[1766081931517,24.64639951,123.54,123.49,0.71]
[1766081931716,7.69168106,123.52,123.47,0.71]
[1766081932021,7.69168106,123.52,123.47,8.80910747]
[1766081933110,8.86,123.51,123.47,0.71]
[1766081934291,16.55168106,123.51,123.46,0.2]
[1766081934493,7.01168106,123.47,123.45,0.2]
[1766081934716,16.55168106,123.47,123.45,0.01970689]
[1766081934910,0.68,123.46,123.45,0.01970689]
[1766081935120,0.68,123.46,123.44,0.2]
[1766081935431,15.87168106,123.47,123.44,0.2]
[1766081935718,0.68,123.46,123.44,0.2]
[1766081936287,8.77989135,123.46,123.44,0.2]
[1766081936488,0.68,123.46,123.44,0.2]
[1766081936719,8.10025391,123.46,123.44,0.2]
[1766081936905,0.68,123.45,123.44,0.2]
[1766081937092,7.01168106,123.46,123.44,0.2]
[1766081937297,7.69168106,123.46,123.44,0.2]
[1766081937696,8.86,123.45,123.44,0.2]
[1766081941520,15.87168106,123.45,123.44,0.2]
[1766081941814,24.65212658,123.45,123.43,0.2]
[1766081942417,9.54,123.45,123.43,0.2]
[1766081942906,16.55168106,123.45,123.43,0.2]
[1766081943340,8.86,123.45,123.43,0.2]
[1766081943525,17.58778156,123.49,123.44,0.72]
[1766081943728,8.86,123.47,123.44,0.72]
[1766081943899,7.69168106,123.52,123.47,0.72]
[1766081944094,15.87168106,123.51,123.47,0.72]
[1766081944299,7.01168106,123.5,123.44,7.01168106]
[1766081944494,7.73168106,123.49,123.43,7.21168106]
[1766081944724,8.86,123.48,123.43,15.31304831]
[1766081944907,8.86,123.48,123.43,0.2]
[1766081945105,16.59168106,123.48,123.43,0.2]
[1766081945307,15.87168106,123.48,123.43,8.30173916]
[1766081945606,8.86,123.48,123.43,0.2]
[1766081946615,29.10437181,123.48,123.43,0.92]
[1766081946904,21.00575021,123.48,123.43,0.92]
[1766081947105,29.10432664,123.48,123.43,0.92]
[1766081947702,12.14575021,123.46,123.43,0.2]
[1766081947910,8.86,123.45,123.43,0.2]
[1766081948114,0.72,123.44,123.39,11.42575021]
[1766081948306,0.72,123.44,123.4,0.72]
[1766081948832,20.28575021,123.45,123.4,0.72]
[1766081949131,20.28575021,123.45,123.37,39.51120935]
[1766081949132,0.72,123.4,123.33,8.20795267]
[1766081949322,0.72,123.38,123.33,0.82]
[1766081949523,0.72,123.39,123.33,20.35398424]
[1766081949711,20.28575021,123.41,123.36,0.72]
[1766081949912,8.86,123.41,123.36,0.72]
[1766081950130,22.58342317,123.42,123.38,0.72]
[1766081950131,8.86,123.42,123.38,0.72]
[1766081950832,8.86,123.42,123.37,20.2511601]
[1766081951022,8.86,123.42,123.37,0.72]
[1766081951225,8.86,123.42,123.35,11.42575021]
[1766081951226,12.14575021,123.41,123.35,11.42575021]
[1766081951424,0.72,123.39,123.34,0.72]
[1766081951739,21.00575021,123.39,123.34,0.72]
[1766081952142,21.00575021,123.39,123.34,8.82765969]
[1766081952308,21.00575021,123.39,123.34,0.72]
[1766081952740,0.7,123.37,123.33,0.1]
[1766081952935,20.28575021,123.39,123.33,11.52575021]
[1766081953120,0.7,123.38,123.34,0.69]
[1766081953620,0.7,123.38,123.33,0.1]
[1766081953621,11.42575021,123.37,123.33,0.1]
[1766081953818,20.98575021,123.36,123.33,0.1]
[1766081954016,11.42575021,123.35,123.33,0.1]
[1766081954221,9.56,123.36,123.33,0.1]
[1766081954222,8.86,123.36,123.33,0.1]
[1766081954621,8.86,123.39,123.35,0.69]
[1766081954829,20.28575021,123.39,123.35,0.69]
[1766081955032,9.56,123.39,123.34,11.12767296]
[1766081955233,9.56,123.39,123.35,0.69]
[1766081955932,20.98575021,123.39,123.34,0.69]
[1766081956436,11.42575021,123.35,123.33,0.1]
[1766081957014,20.98575021,123.36,123.33,0.1]
[1766081957415,11.42575021,123.35,123.33,0.1]
[1766081957751,12.12575021,123.34,123.31,0.1]
[1766081957931,8.86,123.36,123.27,8.31202871]
[1766081957932,20.28575021,123.33,123.27,8.31202871]
[1766081958131,11.42575021,123.32,123.28,0.69]
[1766081958338,12.12575021,123.32,123.27,0.2]
[1766081958527,12.12575021,123.32,123.27,0.89]
[1766081959050,0.7,123.32,123.27,9.00214488]
[1766081959416,12.12575021,123.32,123.27,9.00214488]
[1766081959737,8.86,123.35,123.31,0.69]
[1766081960326,8.86,123.35,123.28,19.24761788]
[1766081960327,20.98575021,123.35,123.28,19.24761788]
[1766081960532,20.98575021,123.35,123.3,0.69]
[1766081961240,9.56,123.35,123.3,0.69]
[1766081961620,8.86,123.35,123.31,0.69]
[1766081962646,8.86,123.35,123.31,8.79950008]
[1766081963550,8.86,123.35,123.31,0.69]
[1766081963740,9.56,123.35,123.31,0.69]
[1766081963939,20.98575021,123.35,123.3,8.1101106]
[1766081964134,20.98575021,123.35,123.3,8.8001106]
[1766081964653,20.98575021,123.35,123.27,0.2]
[1766081964654,11.42575021,123.31,123.27,0.2]
[1766081964819,12.12575021,123.29,123.23,0.69]
[1766081965151,0.7,123.28,123.23,0.69]
[1766081965353,8.86,123.27,123.23,0.69]
[1766081965538,8.86,123.27,123.23,19.54039289]
[1766081965730,8.86,123.29,123.26,0.69]
[1766081965943,12.12575021,123.32,123.26,11.42575021]
[1766081965944,8.86,123.32,123.26,11.42575021]
[1766081966149,8.86,123.32,123.27,0.69]
[1766081966352,30.72342317,123.32,123.27,0.69]
[1766081966549,30.72342317,123.32,123.28,0.69]
[1766081966747,19.29767296,123.32,123.28,0.69]
[1766081967331,30.72342317,123.32,123.28,0.69]
[1766081967541,19.29767296,123.32,123.28,12.11575021]
[1766081967743,0.7,123.35,123.28,0.69]
[1766081968033,0.7,123.35,123.28,12.11575021]
[1766081968034,0.7,123.33,123.28,12.11575021]
[1766081968849,8.86,123.34,123.3,12.11575021]
[1766081969028,8.86,123.34,123.28,8.11150952]
[1766081969223,9.56,123.34,123.29,11.42575021]
[1766081969455,17.66773182,123.34,123.29,11.42575021]
[1766081969761,17.66772148,123.34,123.28,12.11575021]
[1766081969934,9.56,123.34,123.28,20.22733007]
[1766081970360,9.56,123.34,123.29,12.11575021]
[1766081970739,9.56,123.34,123.3,11.42575021]
[1766081970931,8.86,123.34,123.3,12.11575021]
[1766081971359,8.86,123.34,123.3,11.42575021]
[1766081971653,8.86,123.37,123.33,0.69]
[1766081972031,9.56,123.37,123.31,0.69]
[1766081972258,9.56,123.37,123.32,11.42575021]
[1766081972560,9.56,123.37,123.32,12.11575021]
[1766081973342,0.7,123.36,123.31,11.42575021]
[1766081973645,0.7,123.36,123.3,21.86342317]
[1766081973955,0.7,123.35,123.3,21.86342317]
[1766081974136,0.7,123.35,123.3,22.55342317]
[1766081974341,0.7,123.35,123.3,0.69]
[1766081974538,8.86,123.34,123.3,12.11575021]
[1766081974765,8.86,123.34,123.31,0.69]
[1766081975140,8.86,123.34,123.3,12.11575021]
[1766081976164,8.86,123.34,123.31,20.2253794]
[1766081976367,8.86,123.36,123.32,12.11575021]
[1766081976549,0.7,123.41,123.35,12.11575021]
[1766081976857,0.7,123.41,123.36,0.69]
[1766081976858,8.86,123.4,123.36,0.69]
[1766081977578,8.86,123.4,123.37,0.69]
[1766081978065,8.86,123.4,123.37,12.11575021]
[1766081979454,8.86,123.4,123.38,11.42575021]
[1766081979861,8.86,123.4,123.38,12.11575021]
[1766081980363,8.86,123.4,123.38,0.69]
[1766081981150,8.86,123.4,123.37,11.42575021]
[1766081981452,8.86,123.4,123.37,20.22142441]
[1766081981947,0.7,123.44,123.39,0.69]
[1766081982146,0.7,123.44,123.4,11.42575021]
[1766081982362,8.86,123.44,123.4,12.11575021]
[1766081982763,8.86,123.44,123.41,12.10575021]
[1766081982947,0.7,123.46,123.42,12.10575021]
[1766081983155,8.86,123.47,123.42,11.42575021]
[1766081983459,8.86,123.47,123.44,11.42575021]
[1766081983648,8.86,123.47,123.45,11.42575021]
[1766081983968,8.86,123.47,123.44,12.10575021]
[1766081984969,8.86,123.47,123.45,11.42575021]
[1766081985346,8.86,123.47,123.44,12.10575021]
[1766081985546,8.86,123.47,123.44,20.20682283]
[1766081986274,8.86,123.47,123.45,11.42575021]
[1766081986571,8.86,123.47,123.44,20.20682283]
[1766081986874,8.86,123.47,123.44,12.10575021]
[1766081987568,0.71,123.49,123.44,20.20675064]
[1766081987870,0.71,123.49,123.45,11.42575021]
[1766081988479,0.71,123.49,123.45,12.10575021]
[1766081988643,0.71,123.49,123.45,0.68]
[1766081988851,0.71,123.49,123.45,12.10575021]
[1766081989049,0.71,123.49,123.45,0.68]
[1766081989974,8.86,123.5,123.45,20.20611398]
[1766081990352,9.57,123.5,123.45,20.20611398]
[1766081990677,10.43767296,123.51,123.46,0.68]
[1766081990855,10.43767296,123.51,123.45,12.10575021]
[1766081990856,0.71,123.5,123.45,12.10575021]
[1766081991059,0.71,123.5,123.45,0.68]
[1766081991464,0.71,123.5,123.45,12.10575021]
[1766081991672,0.71,123.5,123.45,0.68]
[1766081991868,0.71,123.5,123.45,12.10575021]
[1766081992071,0.71,123.49,123.44,30.72342317]
[1766081992275,0.71,123.49,123.44,31.40342317]
[1766081992854,0.71,123.49,123.44,31.19233619]
[1766081993475,0.71,123.49,123.44,39.29334468]
[1766081994559,0.71,123.49,123.45,0.68]
[1766081996183,0.71,123.48,123.44,10.43767296]
[1766081997268,9.51994492,123.52,123.45,0.68]
[1766081997465,0.71,123.5,123.46,12.10575021]
[1766081997667,0.71,123.5,123.45,11.42575021]
[1766081998081,0.71,123.5,123.45,12.10575021]
[1766081998280,0.71,123.5,123.45,0.68]
[1766081998493,0.71,123.49,123.45,0.68]
[1766081998792,0.71,123.47,123.43,0.68]
[1766081998993,0.71,123.49,123.43,20.20737691]
[1766081999675,0.71,123.48,123.43,20.20737691]
[1766082000067,0.71,123.48,123.43,19.52737691]
[1766082000276,0.71,123.48,123.43,20.20737691]
[1766082000976,0.68,123.5,123.46,0.72]
[1766082001182,9.54,123.5,123.46,0.72]
[1766082001386,11.42575021,123.52,123.46,0.72]
[1766082001670,29.06162984,123.52,123.47,0.72]
[1766082001883,0.68,123.51,123.45,29.96356795]
[1766082002084,0.68,123.51,123.39,12.4257502]
[1766082002085,0.68,123.47,123.41,0.72]
[1766082002273,12.10575021,123.47,123.41,0.72]
[1766082002472,0.68,123.46,123.41,0.72]
[1766082002699,0.68,123.46,123.41,20.2487334]
[1766082002912,0.68,123.46,123.42,0.72]
[1766082003069,9.54,123.48,123.42,0.72]
[1766082003386,20.96575021,123.48,123.43,0.72]
[1766082003571,9.54,123.48,123.44,0.72]
[1766082003766,9.54,123.48,123.44,8.82090009]
[1766082003972,27.3444011,123.51,123.44,8.82090009]
[1766082003973,12.10575021,123.52,123.46,0.72]
[1766082004181,12.10575021,123.52,123.47,0.72]
[1766082004182,0.68,123.51,123.47,0.72]
[1766082005469,0.68,123.51,123.45,0.72]
[1766082005666,0.68,123.51,123.46,0.72]
[1766082006308,0.68,123.5,123.46,0.72]
[1766082008503,0.68,123.5,123.46,7.74695874]
[1766082008697,8.86,123.52,123.48,0.72]
[1766082009002,9.54,123.52,123.48,0.72]
[1766082010781,8.86,123.52,123.48,15.12535018]
[1766082010987,8.86,123.52,123.49,0.72]
[1766082011421,0.68,123.57,123.51,7.48695874]
[1766082011576,0.68,123.57,123.49,8.80994492]
[1766082011577,0.68,123.57,123.53,7.02695874]
[1766082011784,0.68,123.57,123.53,7.48695874]
[1766082012100,7.02695874,123.59,123.54,0.46]
[1766082012101,0.68,123.59,123.54,0.46]
[1766082012281,0.68,123.59,123.54,7.48695874]
[1766082013197,0.68,123.59,123.54,0.46]
[1766082013501,0.68,123.59,123.55,7.02695874]
[1766082013872,0.68,123.59,123.55,23.9806848]
[1766082014077,0.92,123.61,123.56,7.02695874]
[1766082014277,0.72,123.6,123.56,7.02695874]
[1766082014496,0.72,123.6,123.55,16.34695874]
[1766082015506,0.72,123.6,123.5,10.43767296]
[1766082015507,7.02695874,123.57,123.5,10.43767296]
[1766082015678,0.72,123.56,123.5,26.7846317]
[1766082015999,0.72,123.56,123.51,8.09644944]
[1766082016298,0.72,123.56,123.5,27.85460771]
[1766082016602,7.74695874,123.56,123.5,24.44389349]
[1766082016902,0.72,123.55,123.5,24.44389349]
[1766082017086,0.72,123.55,123.5,34.88156645]
[1766082017891,0.72,123.55,123.51,7.02695874]
[1766082018107,0.72,123.55,123.51,15.1234685]
[1766082018287,0.72,123.55,123.51,8.09650976]
[1766082018491,0.72,123.55,123.5,34.88158169]
[1766082019202,0.72,123.55,123.5,27.85462295]
[1766082019406,0.72,123.55,123.5,34.88178334]
[1766082020427,7.02695874,123.58,123.51,7.48695874]
[1766082020726,0.72,123.57,123.52,7.02695874]
[1766082021624,0.72,123.57,123.53,7.02695874]
[1766082021802,0.72,123.57,123.52,7.48695874]
[1766082021995,0.72,123.57,123.53,7.02695874]
[1766082022311,0.72,123.57,123.52,15.58218427]
[1766082027397,9.58,123.59,123.54,0.46]
[1766082027620,9.58,123.59,123.55,7.48695874]
[1766082027621,0.72,123.59,123.55,7.48695874]
[1766082027996,0.92,123.61,123.54,0.46]
[1766082028212,0.72,123.6,123.55,7.48695874]
[1766082028800,8.09073528,123.6,123.53,10.43767296]
[1766082029007,0.72,123.59,123.53,34.419702]
[1766082029304,0.72,123.58,123.53,34.419702]
[1766082030710,0.72,123.58,123.53,27.39274326]
[1766082031730,0.72,123.58,123.53,19.29767296]
[1766082032921,0.72,123.57,123.53,19.29767296]
[1766082033140,0.72,123.57,123.53,10.43767296]
[1766082033306,0.72,123.56,123.51,23.98335917]
[1766082033493,0.72,123.56,123.51,34.42103213]
[1766082033696,0.72,123.56,123.51,23.98335917]
[1766082034030,0.72,123.54,123.5,8.09692993]
[1766082034190,0.72,123.55,123.51,8.09648963]
[1766082034821,0.72,123.55,123.51,15.58344837]
[1766082035019,7.02695874,123.58,123.51,15.58344837]
[1766082035228,0.72,123.57,123.51,15.58344837]
[1766082035522,0.72,123.57,123.51,11.17764089]
[1766082036015,0.72,123.56,123.51,11.17764089]
[1766082036219,0.72,123.56,123.5,21.15568188]
[1766082036419,3.34115126,123.56,123.5,21.15568188]
[1766082036607,0.72,123.55,123.5,21.61568188]
[1766082037117,0.72,123.55,123.5,18.99453062]
[1766082037430,0.72,123.55,123.51,8.09649202]
[1766082037726,8.86,123.59,123.54,3.08115126]
[1766082038022,0.72,123.6,123.55,11.94115126]
[1766082038220,0.72,123.6,123.55,19.57501198]
[1766082038422,0.72,123.6,123.55,11.48115126]
[1766082038596,0.72,123.6,123.55,19.57498566]
[1766082040211,0.2,123.61,123.57,3.08115126]
[1766082040524,0.92,123.61,123.56,3.08115126]
[1766082040729,0.2,123.63,123.61,0.46]
[1766082040899,0.92,123.63,123.6,8.86]
[1766082041096,0.2,123.63,123.6,8.86]
[1766082041311,0.2,123.63,123.59,3.08115126]
[1766082041832,0.2,123.63,123.6,2.62115126]
[1766082042321,0.2,123.64,123.61,10.71111161]
[1766082042518,0.92,123.64,123.6,10.71156241]
[1766082042731,0.92,123.64,123.59,10.97220997]
[1766082042908,0.2,123.64,123.6,8.09044857]
[1766082043109,0.2,123.64,123.59,10.97216288]
[1766082043110,0.92,123.64,123.59,10.97216288]
[1766082044537,0.72,123.63,123.58,16.95174242]
[1766082044830,2.82115126,123.64,123.56,16.95285523]
[1766082044831,0.72,123.61,123.56,16.95285523]
[1766082045030,0.72,123.61,123.56,27.39052819]
[1766082045612,0.72,123.61,123.56,26.31406306]
[1766082045934,0.72,123.61,123.56,26.57406306]
[1766082046325,0.72,123.61,123.57,8.0925791]
[1766082046833,0.72,123.61,123.56,34.6669892]
[1766082047837,0.72,123.61,123.56,54.90007434]
[1766082048153,0.72,123.61,123.57,7.2763901]
[1766082048448,0.72,123.61,123.57,8.09209133]
[1766082049630,0.72,123.63,123.58,7.2763901]
[1766082049937,0.72,123.63,123.59,8.86]
[1766082051435,0.72,123.63,123.59,23.96720561]
[1766082051611,0.72,123.63,123.59,24.22720561]
[1766082052540,0.72,123.63,123.59,8.86]
[1766082053041,0.72,123.63,123.59,23.96756484]
[1766082053435,0.72,123.63,123.59,16.95117474]
[1766082053842,0.72,123.63,123.59,16.21171296]
[1766082054146,0.92,123.64,123.59,23.48810306]
[1766082054342,0.92,123.64,123.59,43.71627686]
[1766082054542,0.92,123.64,123.6,7.0163901]
[1766082055054,0.2,123.64,123.61,0.26]
[1766082055258,0.2,123.65,123.62,7.2763901]
[1766082055418,0.72,123.69,123.64,7.0163901]
[1766082055618,0.72,123.69,123.66,7.0163901]
[1766082055818,0.92,123.7,123.65,8.86]
[1766082056128,0.92,123.7,123.65,15.8763901]
[1766082056432,0.92,123.7,123.66,7.0163901]
[1766082056635,0.72,123.69,123.65,8.86]
[1766082056951,0.72,123.69,123.64,23.96394293]
[1766082057138,0.72,123.68,123.62,25.54301558]
[1766082057342,0.72,123.68,123.62,34.40301558]
[1766082057544,0.72,123.68,123.63,15.10490527]
[1766082057926,0.72,123.68,123.63,8.08851517]
[1766082058540,0.72,123.68,123.63,15.10490527]
[1766082059421,0.72,123.68,123.63,8.08851517]
[1766082059827,0.72,123.68,123.63,15.10490527]
[1766082060437,0.72,123.69,123.64,7.0163901]
[1766082060655,0.72,123.69,123.66,10.43767296]
[1766082061359,0.72,123.69,123.64,7.0163901]
[1766082061557,0.72,123.69,123.65,7.0163901]
[1766082061762,0.72,123.69,123.63,25.54257823]
[1766082062124,0.66,123.67,123.63,10.43767296]
[1766082062665,0.66,123.67,123.63,18.5262938]
[1766082063160,0.66,123.67,123.63,10.43767296]
[1766082063449,15.10129322,123.69,123.64,7.0163901]
[1766082063450,0.66,123.69,123.64,7.0163901]
[1766082063744,47.4219533,123.75,123.64,7.0163901]
[1766082063745,0.1,123.74,123.68,7.0163901]
[1766082063953,0.76,123.74,123.69,19.27767296]
[1766082064153,0.76,123.74,123.7,8.84]
[1766082064354,0.76,123.74,123.69,10.43767296]
[1766082064725,0.66,123.73,123.68,7.0163901]
[1766082064925,0.66,123.73,123.67,26.29406306]
[1766082065136,0.66,123.73,123.67,34.37971005]
[1766082065753,0.66,123.73,123.68,7.0163901]
[1766082066756,0.66,123.73,123.67,34.37971005]
[1766082067354,0.66,123.73,123.67,38.74261684]
[1766082067870,0.66,123.73,123.68,11.37929689]
[1766082068751,0.66,123.72,123.68,8.08534448]
[1766082068957,0.66,123.71,123.65,21.81696985]
[1766082069369,0.66,123.71,123.66,8.08634085]
[1766082069542,0.66,123.71,123.66,11.37929689]
[1766082069738,0.66,123.71,123.66,19.4659348]
[1766082070451,0.66,123.71,123.66,28.30336118]
[1766082070775,0.66,123.71,123.67,11.37929689]
[1766082071068,0.66,123.71,123.66,8.08663791]
[1766082071786,0.66,123.69,123.63,19.46755606]
[1766082072147,0.66,123.69,123.63,29.90522902]
[1766082073364,0.7,123.68,123.63,8.08862309]
[1766082074560,0.7,123.68,123.62,29.90595386]
[1766082076162,0.7,123.67,123.62,29.90595386]
[1766082078979,0.7,123.67,123.62,8.08898401]
[1766082079182,0.7,123.65,123.6,8.09026954]
[1766082079476,0.7,123.65,123.61,11.37929689]
[1766082080150,10.43767296,123.67,123.61,11.37929689]
[1766082080151,10.43767296,123.67,123.62,8.08924176]
[1766082080350,0.7,123.67,123.63,11.37929689]
[1766082080672,0.7,123.69,123.64,11.37929689]
[1766082081257,0.7,123.69,123.63,8.84]
[1766082081481,0.7,123.68,123.63,20.21929689]
[1766082081773,0.7,123.68,123.63,8.84]
[1766082082387,0.7,123.68,123.62,50.12947645]
[1766082082388,0.7,123.66,123.62,8.08925835]
[1766082082585,11.13767296,123.68,123.63,8.08858618]
[1766082082795,12.07929689,123.7,123.64,11.37929689]
[1766082082969,0.7,123.69,123.64,11.37929689]
[1766082083692,0.7,123.69,123.63,37.15021523]
[1766082083990,0.7,123.69,123.64,11.37929689]
[1766082084874,0.7,123.69,123.64,19.46683517]
[1766082085591,0.7,123.69,123.64,39.68682869]
[1766082085989,0.7,123.69,123.64,8.08753828]
[1766082086288,0.7,123.68,123.63,16.92832448]
[1766082086480,0.7,123.68,123.62,19.46852614]
[1766082086789,0.7,123.67,123.62,19.46852614]
[1766082087684,0.7,123.67,123.63,11.37929689]
[1766082088693,20.21929689,123.7,123.63,19.46740599]
[1766082088986,0.7,123.72,123.67,11.37929689]
[1766082089188,0.7,123.72,123.66,11.37929689]
[1766082089379,0.7,123.72,123.66,4.08561971]
[1766082089583,0.7,123.72,123.64,17.64994492]
[1766082089796,0.7,123.72,123.68,4.08561971]
[1766082090681,0.7,123.72,123.68,12.17068492]
[1766082091590,0.7,123.72,123.68,19.4630322]
[1766082093296,0.7,123.72,123.67,16.92575808]
[1766082093593,0.7,123.72,123.67,28.30372507]
[1766082094501,0.7,123.72,123.66,18.52420779]
[1766082094681,0.7,123.72,123.66,29.90217478]
[1766082094885,0.7,123.71,123.66,29.90217478]
[1766082095083,0.7,123.71,123.65,28.30500976]
[1766082095284,0.7,123.71,123.66,8.08668323]
[1766082095505,0.7,123.71,123.66,19.46465022]
[1766082095675,0.7,123.71,123.66,8.08668323]
[1766082095876,0.7,123.71,123.65,20.21796699]
[1766082096306,0.7,123.71,123.66,11.37796699]
[1766082097292,0.7,123.71,123.66,19.46464499]
[1766082098203,0.7,123.71,123.66,11.37796699]
[1766082098903,0.7,123.71,123.65,28.30499798]
[1766082099096,0.7,123.71,123.66,11.37796699]
[1766082099277,0.7,123.71,123.66,19.46459237]
[1766082099801,8.08243047,123.73,123.68,11.37796699]
[1766082099802,0.7,123.73,123.68,11.37796699]
[1766082100198,0.7,123.73,123.68,20.21796699]
[1766082101683,0.7,123.73,123.68,28.30305106]
[1766082105904,0.7,123.73,123.66,8.84]
[1766082106211,0.1,123.74,123.66,8.84]
[1766082106386,0.78,123.74,123.69,11.37796699]
[1766082107192,0.78,123.74,123.68,19.46330987]
[1766082108006,0.68,123.73,123.68,19.46330987]
[1766082108226,0.68,123.73,123.67,19.46370221]
[1766082108510,0.68,123.73,123.68,19.46327358]
[1766082108696,0.68,123.73,123.68,8.08530659]
[1766082109685,0.68,123.73,123.68,19.46327358]
[1766082111394,0.68,123.73,123.68,12.16982242]
[1766082113909,0.68,123.73,123.68,8.08530659]
[1766082114093,0.68,123.73,123.68,12.16982242]
[1766082116113,0.68,123.71,123.66,8.08649848]
[1766082116405,0.68,123.71,123.66,12.17101431]
[1766082118489,0.68,123.71,123.66,8.08649848]
[1766082118808,0.68,123.71,123.65,21.01153093]
[1766082121894,0.68,123.71,123.66,4.08451583]
[1766082122093,0.7,123.73,123.69,4.08451583]
[1766082122720,0.7,123.73,123.68,12.92451583]
[1766082123024,0.7,123.73,123.68,21.00981328]
[1766082123603,0.7,123.71,123.65,17.64994492]
[1766082123805,0.7,123.7,123.64,10.43767296]
[1766082124011,0.7,123.67,123.62,8.84]
[1766082124329,0.7,123.66,123.6,4.08451583]
[1766082124508,0.7,123.63,123.58,4.08451583]
[1766082124700,0.7,123.63,123.58,12.1764068]
[1766082124901,0.7,123.63,123.59,4.08451583]
[1766082125121,0.7,123.63,123.58,12.1764068]
[1766082125432,0.7,123.63,123.59,11.39529085]
[1766082125614,0.7,123.63,123.58,19.48718182]
[1766082125811,0.7,123.63,123.59,11.39529085]
[1766082126015,0.7,123.66,123.6,11.39529085]
[1766082126322,12.09529085,123.66,123.59,20.23529085]
[1766082126522,0.7,123.64,123.59,8.84]
[1766082126708,0.7,123.64,123.58,19.48718182]
[1766082127526,0.7,123.64,123.59,11.39529085]
[1766082128123,0.7,123.64,123.58,19.48718182]
[1766082128532,0.7,123.64,123.59,11.39529085]
[1766082128827,0.7,123.64,123.59,19.48608405]
[1766082129035,0.7,123.66,123.6,11.39529085]
[1766082129404,0.7,123.66,123.61,7.01078503]
[1766082129909,0.7,123.65,123.59,34.37925119]
[1766082130610,0.7,123.65,123.6,7.01078503]
[1766082130937,0.7,123.65,123.61,15.10025303]
[1766082131422,0.7,123.65,123.61,8.089468]
[1766082132014,0.7,123.65,123.6,15.10129359]
[1766082132620,0.7,123.65,123.6,8.09050856]
[1766082132822,0.7,123.65,123.59,34.37946413]
[1766082133636,0.7,123.65,123.6,7.01078503]
[1766082134145,0.7,123.65,123.59,54.60763793]
[1766082134636,0.7,123.65,123.59,34.37946413]
[1766082134830,15.09818877,123.65,123.59,27.3686791]
[1766082135134,15.09818877,123.65,123.59,8.84]
[1766082135135,0.71,123.63,123.59,8.84]